bitfinex/quotes_ETHUSD_20251010
["timestamp","ask_amount","ask_price","bid_price","bid_amount"]
[1760113219888,0.6336,4113.1,4111.3,2.43426157]
[1760113220089,0.6336,4113.1,4111.3,4.183]
[1760113220090,0.6336,4112.9,4111.3,4.183]
[1760113220260,2.43183547,4112.2,4111.3,4.183]
[1760113220586,2.5536,4112.6,4111.3,0.002]
[1760113220904,2.43219742,4111.6,4111.3,0.002]
[1760113221057,2.43217654,4111.6,4111.3,0.002]
[1760113221472,2.43197527,4111.9,4111.3,0.002]
[1760113221668,0.1003,4112.2,4111.3,0.002]
[1760113221874,0.7339,4112.2,4111.3,0.002]
[1760113222090,2.43209667,4111.7,4111.3,0.002]
[1760113222605,2.43220305,4111.5,4111.3,0.002]
[1760113222755,2.4321432,4111.6,4111.3,0.002]
[1760113222956,2.43226151,4111.4,4111.3,0.002]
[1760113223155,4.35226151,4111.4,4111.3,0.002]
[1760113223400,4.97481987,4111.4,4111.3,0.002]
[1760113224113,0.52225836,4111.4,4111.3,0.002]
[1760113224450,0.1003,4111.4,4111.3,0.002]
[1760113224601,2.84916681,4111.4,4111.3,0.002]
[1760113225124,0.52225836,4111.5,4111.3,0.002]
[1760113225323,0.52225836,4112.0,4111.3,0.5866]
[1760113225536,2.43200844,4111.9,4111.3,0.002]
[1760113225738,0.65279767,4112.3,4111.3,0.002]
[1760113225913,3.71865918,4111.4,4111.3,0.002]
[1760113226110,12.82215019,4111.4,4111.3,0.002]
[1760113226323,12.92245019,4111.4,4111.3,0.002]
[1760113226722,12.22055283,4111.4,4111.3,0.002]
[1760113226923,3.09384748,4111.4,4111.3,0.002]
[1760113227152,0.86813296,4111.7,4111.3,0.002]
[1760113227153,0.52225836,4111.6,4111.3,0.002]
[1760113227352,1.92,4111.8,4111.3,0.002]
[1760113227662,0.52225836,4112.0,4111.4,0.463]
[1760113227863,1.17384748,4112.3,4111.4,2.43226151]
[1760113228036,4.35184407,4112.2,4111.5,0.48666407]
[1760113228238,0.52225836,4112.1,4111.7,2.43202524]
[1760113228475,1.17384748,4112.5,4111.7,2.43204277]
[1760113228761,0.52225836,4112.5,4111.6,2.43214297]
[1760113228960,0.52225836,4112.5,4111.8,2.45632995]
[1760113229133,0.52225836,4112.5,4111.9,2.43195127]
[1760113229334,2.44225836,4112.6,4111.8,0.02432024]
[1760113229538,0.52225836,4112.7,4111.9,0.463]
[1760113229866,0.52225836,4112.7,4111.5,6.63685231]
[1760113229867,3.60516381,4113.0,4111.5,0.48666407]
[1760113230041,0.52225836,4112.9,4111.6,15.16966641]
[1760113230248,0.52225836,4112.9,4111.7,2.91938232]
[1760113230444,1.92,4113.3,4111.7,0.463]
[1760113230445,1.17384748,4113.1,4111.7,0.463]
[1760113230758,0.52225836,4113.0,4111.7,0.463]
[1760113230958,1.17384748,4113.1,4111.7,0.463]
[1760113231137,1.17384748,4113.2,4111.8,1.58758688]
[1760113231466,0.52225836,4113.4,4111.9,0.463]
[1760113231632,0.52225836,4113.4,4112.5,2.43160917]
[1760113231633,2.43118033,4113.3,4112.5,2.43160917]
[1760113231836,0.52225836,4113.3,4112.6,2.431542]
[1760113232032,0.52225836,4113.3,4112.1,3.718]
[1760113232033,0.52225836,4113.4,4112.7,0.48731492]
[1760113232266,1.30219945,4114.2,4113.4,2.43106369]
[1760113232267,1.17384748,4114.1,4113.4,2.43106369]
[1760113232442,0.52325836,4114.3,4113.3,0.463]
[1760113232636,0.001,4114.3,4113.7,2.43086975]
[1760113232835,0.001,4114.3,4113.5,2.43101981]
[1760113232836,0.001,4114.3,4113.8,2.43082666]
[1760113233070,0.001,4114.3,4113.4,14.7489]
[1760113233267,0.001,4114.1,4113.4,14.7489]
[1760113233576,0.001,4114.1,4113.4,3.9669]
[1760113233771,0.001,4114.1,4113.6,2.43094064]
[1760113234086,0.001,4114.1,4113.6,1.13179189]
[1760113234244,0.001,4114.1,4113.7,0.463]
[1760113234574,0.001,4114.1,4114.0,2.43072435]
[1760113234865,2.43170974,4114.1,4113.3,2.43109491]
[1760113235091,2.43170974,4114.1,4113.1,2.43125623]
[1760113235092,0.001,4114.1,4113.2,3.717]
[1760113235239,2.43072435,4114.0,4113.0,0.463]
[1760113235436,0.1208,4113.6,4113.0,0.463]
[1760113235783,0.001,4114.1,4113.1,0.02431256]
[1760113236067,0.001,4114.1,4113.9,0.1208]
[1760113236259,0.001,4114.1,4113.9,2.55157943]
[1760113236435,0.001,4114.1,4113.9,0.1208]
[1760113236969,0.001,4114.1,4113.9,2.55153066]
[1760113237671,0.001,4114.1,4114.0,2.43072435]
[1760113237873,0.001,4114.1,4113.9,0.1208]
[1760113238039,0.001,4114.1,4114.0,2.45503159]
[1760113238242,0.001,4114.1,4113.9,0.1208]
[1760113238774,0.001,4114.1,4113.0,2.43129869]
[1760113238775,2.4316976,4114.1,4113.3,2.43108749]
[1760113238949,0.001,4114.1,4113.5,0.1208]
[1760113239156,0.001,4114.1,4113.6,0.0243096]
[1760113239474,0.001,4114.1,4113.5,0.1208]
[1760113239678,0.001,4114.1,4112.9,14.5]
[1760113239679,0.1208,4113.9,4113.2,0.1208]
[1760113239884,0.1208,4113.9,4113.6,2.43091513]
[1760113240052,0.1208,4113.9,4113.6,0.0243096]
[1760113240378,0.001,4114.1,4113.8,2.4307858]
[1760113240574,0.001,4114.1,4114.0,2.43072435]
[1760113240977,0.001,4114.8,4114.7,2.43031083]
[1760113241205,0.001,4114.8,4114.5,2.43038871]
[1760113241350,0.001,4114.8,4114.6,14.5]
[1760113241652,0.001,4114.8,4113.5,0.463]
[1760113241999,0.24312517,4114.7,4112.3,1.92]
[1760113242196,0.6336,4114.2,4112.1,0.2309]
[1760113242486,0.6336,4113.9,4111.9,1.875]
[1760113242692,2.43130219,4113.1,4112.3,2.43168622]
[1760113242858,1.92,4113.7,4112.1,2.66271494]
[1760113242859,0.6336,4113.6,4112.1,0.2309]
[1760113243056,0.6336,4113.6,4111.8,0.002]
[1760113243057,0.6336,4113.3,4111.8,0.002]
[1760113243283,2.43196575,4111.9,4111.8,0.002]
[1760113243499,1.92,4111.9,4111.8,0.002]
[1760113243677,7.662,4112.1,4111.8,0.002]
[1760113243881,2.43190661,4112.0,4111.8,0.002]
[1760113244195,4.35196575,4111.9,4111.8,0.002]
[1760113244513,5.61470299,4111.9,4111.8,0.002]
[1760113244712,3.31118912,4112.9,4111.8,0.465]
[1760113244993,3.716,4112.9,4112.1,2.43183603]
[1760113245295,2.43098182,4113.6,4112.1,2.43183603]
[1760113245296,0.65158912,4114.1,4112.2,0.6939]
[1760113245596,2.43084253,4113.8,4112.7,2.43147882]
[1760113245799,0.51970192,4113.9,4113.1,2.43125272]
[1760113246001,6.14661153,4114.2,4113.1,2.43119901]
[1760113246002,2.43073277,4114.0,4113.1,2.43119901]
[1760113246219,5.743,4114.2,4112.7,0.94931489]
[1760113246220,2.43083289,4113.9,4112.8,2.43137577]
[1760113246383,2.43082025,4113.9,4112.7,0.48631489]
[1760113246584,2.43103645,4113.5,4112.7,2.91778]
[1760113246795,4.35113801,4113.3,4112.1,3.716]
[1760113246983,2.43128811,4113.1,4112.3,2.43167897]
[1760113247200,2.43134233,4113.0,4112.1,6.14779759]
[1760113247370,6.78172789,4113.4,4112.5,2.43158958]
[1760113247576,0.75668912,4114.1,4112.2,0.72381788]
[1760113247577,0.75668912,4114.1,4112.8,2.43138015]
[1760113247905,0.75668912,4114.1,4112.6,0.24315896]
[1760113247906,2.43113334,4113.4,4112.6,0.24315896]
[1760113248204,7.7681,4114.1,4113.0,2.43129958]
[1760113248205,2.43083463,4113.9,4113.0,2.43129958]
[1760113248402,2.43086983,4113.8,4113.0,2.43129958]
[1760113248604,1.92,4114.0,4112.7,0.4488]
[1760113248906,1.92,4113.9,4112.7,0.4488]
[1760113249215,6.50413296,4114.6,4112.7,0.4488]
[1760113249216,2.026,4114.6,4112.9,2.43137445]
[1760113249508,3.946,4114.6,4113.0,1.18171745]
[1760113249804,2.026,4114.6,4113.0,1.18171745]
[1760113250102,2.43050128,4114.4,4113.6,2.43094937]
[1760113250272,0.001,4114.8,4113.8,2.43080221]
[1760113250474,0.001,4114.8,4114.1,2.43064205]
[1760113250669,0.1208,4114.5,4114.1,2.43064205]
[1760113250888,0.1208,4114.5,4114.3,2.43053557]
[1760113251107,0.001,4114.1,4113.9,2.55158321]
[1760113251406,0.001,4114.1,4114.0,2.87952435]
[1760113251579,0.001,4114.1,4114.0,3.44694313]
[1760113251979,0.001,4114.1,4113.5,2.4309686]
[1760113251980,0.001,4114.1,4112.9,14.9488]
[1760113252274,0.001,4114.1,4113.4,2.43103672]
[1760113252474,0.001,4114.1,4112.2,2.2552]
[1760113252677,0.001,4114.1,4112.4,0.4488]
[1760113252678,1.92,4113.5,4112.4,0.4488]
[1760113252911,15.554812,4114.0,4112.4,0.4488]
[1760113252912,1.92,4113.8,4112.4,0.4488]
[1760113253077,4.35096071,4113.6,4112.5,2.43156238]
[1760113253276,4.35096071,4113.6,4112.3,6.14772915]
[1760113253277,1.92,4113.6,4112.3,2.43168211]
[1760113253476,1.92,4113.6,4112.0,3.716]
[1760113253477,2.43146235,4112.8,4112.0,3.716]
[1760113253708,2.43138911,4112.9,4112.0,3.716]
[1760113253910,0.6336,4113.5,4111.8,0.4508]
[1760113254181,2.43161342,4112.5,4111.8,0.002]
[1760113254619,1.92,4112.9,4111.8,0.002]
[1760113254807,2.43171613,4112.4,4111.8,0.002]
[1760113255010,2.43180793,4112.2,4111.8,0.002]
[1760113255187,2.43173208,4112.3,4111.8,0.002]
[1760113255387,3.07547676,4112.5,4111.8,0.002]
[1760113255590,4.35167007,4112.4,4111.8,0.002]
[1760113255792,2.431851,4112.1,4111.8,0.002]
[1760113255991,2.43179476,4112.2,4111.8,0.002]
[1760113256204,0.52164279,4112.3,4111.8,0.002]
[1760113256418,0.1074,4112.2,4111.8,0.002]
[1760113256613,0.1074,4112.1,4111.8,0.002]
[1760113256890,10.36139175,4111.9,4111.8,0.002]
[1760113257192,4.8642864,4111.6,4111.3,1e-08]
[1760113257390,3.06633488,4110.6,4108.5,0.4488]
[1760113257600,1.92,4110.6,4109.6,2.43329909]
[1760113257891,0.52164279,4110.9,4110.2,2.43295831]
[1760113258104,0.52164279,4110.9,4109.8,0.4488]
[1760113258105,2.43254668,4111.0,4110.1,2.43302007]
[1760113258305,0.52164279,4111.1,4110.2,2.43296637]
[1760113258516,4.23732177,4111.2,4110.2,2.43291634]
[1760113258811,5.636,4111.2,4110.5,2.43478736]
[1760113259012,1.92,4111.1,4110.5,0.002]
[1760113259413,2.43230705,4111.4,4110.6,2.43268596]
[1760113259619,1.92,4111.2,4110.5,2.43474654]
[1760113259779,1.92,4111.2,4110.5,0.002]
[1760113260114,3.717,4111.4,4110.5,0.002]
[1760113260416,2.4324425,4111.1,4110.5,0.002]
[1760113260596,2.43273488,4110.6,4110.5,0.002]
[1760113260930,6.14973488,4110.6,4110.5,0.002]
[1760113261137,8.69645375,4110.6,4110.5,0.002]
[1760113261435,9.58894143,4110.6,4110.5,0.002]
[1760113261658,15.01452143,4110.6,4110.5,0.002]
[1760113261946,4.07280655,4110.6,4110.5,0.002]
[1760113262135,2.44131887,4110.6,4110.5,0.002]
[1760113262338,3.717,4111.7,4111.1,2.43243798]
[1760113262539,3.717,4111.7,4110.5,0.4508]
[1760113262540,4.69756202,4111.6,4110.6,0.02432734]
[1760113262720,0.1216,4111.3,4111.2,2.43232993]
[1760113263039,0.1054,4111.3,4110.5,0.002]
[1760113263342,0.1216,4110.7,4110.5,0.002]
[1760113263503,2.5542906,4110.7,4110.5,0.002]
[1760113263706,0.1216,4110.7,4110.5,0.002]
[1760113263934,1.92,4111.5,4110.5,0.002]
[1760113264132,0.1216,4111.2,4110.6,2.8815225]
[1760113264433,4.69756202,4111.6,4110.5,0.002]
[1760113264662,0.1216,4110.9,4110.5,0.002]
[1760113265535,8.41456202,4111.6,4110.6,0.4488]
[1760113265747,0.1216,4111.2,4110.7,2.4326318]
[1760113265917,0.1216,4111.2,4110.6,2.43273488]
[1760113266121,0.6336,4112.3,4110.6,2.43273488]
[1760113266122,4.69756202,4111.1,4110.7,0.25563349]
[1760113266318,4.69756202,4111.1,4110.5,0.002]
[1760113266513,4.69756202,4111.1,4110.6,0.4488]
[1760113266837,3.717,4111.8,4111.3,2.43227167]
[1760113267053,1.92,4111.7,4110.5,0.002]
[1760113267256,1.92,4111.5,4110.5,0.002]
[1760113267553,2.43250991,4111.0,4110.5,0.002]
[1760113267856,3.718,4111.2,4110.5,0.002]
[1760113268059,3.06633488,4110.6,4110.5,0.002]
[1760113268357,4.98633488,4110.6,4110.5,0.002]
[1760113268568,12.16174965,4110.6,4110.5,0.002]
[1760113269465,10.02934965,4110.6,4110.5,0.002]
[1760113269667,3.35808783,4110.6,4110.5,0.002]
[1760113269978,8.07073488,4110.6,4110.5,0.002]
[1760113270183,1.92,4110.6,4110.5,0.002]
[1760113270964,4.35273488,4110.6,4110.5,0.002]
[1760113271172,1.92,4110.6,4110.5,0.002]
[1760113271531,6.15068581,4110.7,4110.5,0.002]
[1760113271532,3.718,4110.7,4110.5,0.002]
[1760113271767,2.80453488,4110.6,4110.5,0.002]
[1760113272073,4.06363134,4110.6,4110.5,0.002]
[1760113272230,7.78163134,4110.6,4110.5,0.002]
[1760113272433,9.80863134,4110.6,4110.5,0.002]
[1760113272650,21.41415834,4110.6,4110.5,0.002]
[1760113272844,21.18253234,4110.6,4110.5,0.002]
[1760113273054,11.72863134,4110.6,4110.5,0.002]
[1760113274179,11.72863134,4110.6,4109.6,0.002]
[1760113274180,30.0,4110.5,4109.6,0.002]
[1760113274354,10.59244784,4109.6,4107.2,0.2209]
[1760113274550,2.43399516,4108.5,4107.6,2.43447185]
[1760113274752,3.718,4108.4,4107.3,0.002]
[1760113275066,0.1062,4109.0,4107.3,0.02634689]
[1760113275267,0.1062,4109.0,4107.3,0.002]
[1760113275480,4.35380944,4108.8,4107.6,2.43446999]
[1760113275680,0.474,4108.7,4107.8,2.43437736]
[1760113275879,0.474,4108.7,4107.7,0.53178986]
[1760113275880,2.43390161,4108.7,4107.7,0.53178986]
[1760113276081,0.1216,4108.1,4107.7,0.53178986]
[1760113276258,3.0642,4108.8,4107.8,0.4391]
[1760113276259,3.718,4108.8,4107.8,0.4391]
[1760113276460,1.92,4108.7,4107.9,2.43433384]
[1760113276649,2.43368216,4109.0,4107.8,0.4391]
[1760113276854,2.43368216,4109.0,4108.1,2.43417044]
[1760113277165,0.64958254,4109.6,4108.2,0.25704156]
[1760113277359,1.92,4109.2,4108.6,2.43388324]
[1760113277558,1.92,4109.2,4108.3,2.43404649]
[1760113277559,4.35360514,4109.2,4108.3,2.43404649]
[1760113277759,2.43344683,4109.4,4108.2,0.90020416]
[1760113277760,0.64958254,4109.7,4108.4,0.02434037]
[1760113277964,3.718,4109.6,4108.2,0.90020416]
[1760113278891,1.92,4109.5,4108.8,2.43374148]
[1760113279052,3.85430343,4110.3,4108.6,2.43389731]
[1760113279053,2.43344527,4109.4,4108.6,2.43389731]
[1760113279382,2.43345963,4109.4,4108.6,2.43390339]
[1760113279726,1.1530065,4109.5,4108.2,0.22840416]
[1760113279888,2.43350448,4109.3,4107.8,2.4343931]
[1760113280185,0.5194065,4109.3,4108.9,2.43373743]
[1760113280370,0.5198137,4109.7,4108.9,2.43368272]
[1760113280570,0.5198137,4109.7,4108.9,0.26663827]
[1760113280772,8.07228741,4109.7,4108.9,2.72470414]
[1760113280976,3.719,4109.8,4109.0,2.43368216]
[1760113281183,0.52016976,4109.7,4109.1,2.43357173]
[1760113281499,6.15216202,4109.9,4109.1,2.43357173]
[1760113281799,0.52016976,4109.8,4108.9,0.26663827]
[1760113282000,2.4334295,4109.5,4108.7,2.433849]
[1760113282357,0.52016976,4109.5,4108.2,0.6718]
[1760113282554,2.43390667,4108.7,4107.6,0.4391]
[1760113282774,3.719,4108.8,4107.6,0.4391]
[1760113282967,2.95404492,4108.7,4107.9,2.43428464]
[1760113283286,2.43397833,4108.5,4107.8,2.43439125]
[1760113283494,0.52016976,4108.5,4107.8,0.02434393]
[1760113283798,0.52016976,4108.5,4107.9,0.4391]
[1760113283964,4.23916976,4109.0,4108.4,0.2327]
[1760113284168,2.56958254,4109.5,4108.8,2.43380062]
[1760113284483,0.52247253,4109.4,4108.9,0.02433741]
[1760113284684,0.52247253,4110.0,4109.3,2.43345431]
[1760113284887,2.43261042,4110.9,4108.9,0.4391]
[1760113284888,0.52247253,4109.9,4109.4,0.4391]
[1760113285086,1.30312007,4110.8,4108.5,1.92]
[1760113285087,0.52247253,4110.1,4109.5,17.37246289]
[1760113285288,0.52247253,4110.0,4109.5,14.9391]
[1760113285463,0.52247253,4110.3,4109.6,1.93301]
[1760113285663,0.52247253,4110.7,4110.2,2.66567163]
[1760113285870,0.52247253,4111.6,4110.4,3.06643906]
[1760113286075,3.33112007,4112.5,4110.5,4.1581]
[1760113286076,0.52247253,4111.5,4110.5,4.1581]
[1760113286306,0.52247253,4111.7,4111.3,14.5]
[1760113286506,1.73807153,4113.0,4111.3,14.5]
[1760113286507,1.17205507,4112.9,4111.5,1.92]
[1760113286804,0.52247253,4112.8,4111.6,2.5918]
[1760113286990,0.52247253,4113.0,4111.7,0.4391]
[1760113287219,0.86874671,4113.6,4113.2,2.43119712]
[1760113287220,0.52247253,4113.3,4113.2,2.43119712]
[1760113287378,0.52247253,4114.0,4113.4,2.43106697]
[1760113287574,0.001,4114.1,4113.2,0.4391]
[1760113287972,0.001,4114.1,4113.2,0.67501]
[1760113288173,0.001,4114.1,4113.2,0.4391]
[1760113288671,0.001,4114.1,4114.0,2.43072435]
[1760113288902,0.001,4114.3,4114.2,2.43060619]
[1760113289293,0.001,4114.3,4114.2,17.36970619]
[1760113289810,0.001,4114.6,4114.5,2.43042897]
[1760113289991,0.001,4114.6,4114.5,6.52243377]
[1760113290305,0.001,4114.6,4114.5,6.58652897]
[1760113290504,0.001,4114.6,4114.5,4.1561]
[1760113290704,0.001,4114.6,4114.5,6.58652897]
[1760113291476,0.001,4114.6,4114.5,0.4391]
[1760113291687,0.001,4114.6,4114.5,2.86952897]
[1760113292218,0.001,4114.6,4114.5,5.23984316]
[1760113292581,0.001,4114.6,4114.5,4.1561]
[1760113292901,0.001,4114.6,4114.5,6.58652897]
[1760113293112,1e-08,4115.0,4114.9,4.98379271]
[1760113293405,0.001,4115.8,4115.7,3.06332033]
[1760113293613,0.001,4116.3,4115.7,3.06332033]
[1760113293614,0.001,4116.3,4116.0,2.42951176]
[1760113293926,0.001,4116.3,4116.2,2.66212519]
[1760113294129,0.001,4116.3,4116.2,0.2327]
[1760113294288,0.001,4116.3,4115.8,1.475]
[1760113294626,2.42942519,4116.2,4115.0,0.4391]
[1760113295106,2.42959172,4116.0,4115.1,2.43006542]
[1760113295296,2.42966375,4115.8,4115.0,0.4391]
[1760113295498,2.67259938,4115.9,4115.1,2.43006832]
[1760113295682,0.24295917,4115.9,4115.0,0.4391]
[1760113295874,0.24295917,4115.9,4114.8,3.715]
[1760113296082,0.3241,4116.3,4114.8,3.715]
[1760113296290,2.55060898,4115.6,4114.9,0.1208]
[1760113296522,0.1208,4115.4,4114.7,0.1208]
[1760113296728,0.1208,4115.4,4114.7,2.55110989]
[1760113296889,0.1208,4115.4,4114.7,0.1208]
[1760113297209,0.1208,4115.4,4114.8,6.58432909]
[1760113297509,0.1208,4115.9,4115.2,0.1208]
[1760113297721,0.1208,4115.9,4115.3,0.4391]
[1760113297886,0.1208,4115.9,4115.4,6.14489356]
[1760113298212,2.43039787,4116.3,4115.7,0.1208]
[1760113298213,0.001,4116.3,4115.7,0.1208]
[1760113298949,2.42942519,4116.2,4115.5,0.1208]
[1760113299116,0.1208,4116.1,4115.5,0.1208]
[1760113299304,0.1208,4116.1,4116.0,2.42954324]
[1760113299507,0.001,4116.3,4116.2,2.42942519]
[1760113299902,0.001,4116.3,4116.2,2.86852519]
[1760113300335,0.001,4116.3,4116.2,2.89281944]
[1760113300537,0.001,4116.3,4116.2,4.12950628]
[1760113300715,0.001,4116.3,4116.2,8.72832519]
[1760113301640,0.001,4116.3,4116.2,10.64832519]
[1760113301821,0.001,4116.3,4116.2,11.28192519]
[1760113302245,0.001,4117.3,4116.7,2.42913012]
[1760113302246,1e-08,4116.8,4116.7,2.42913012]
[1760113302429,1e-08,4116.8,4116.7,6.14313012]
[1760113302739,2.42842761,4117.9,4116.7,0.4391]
[1760113302926,2.42816898,4118.4,4116.8,5.739]
[1760113303131,2.42839599,4118.0,4117.2,2.42878336]
[1760113303433,2.42818752,4118.3,4117.3,2.42875804]
[1760113303634,2.42830888,4118.1,4117.4,3.713]
[1760113303814,2.42836408,4118.0,4117.4,4.1521]
[1760113304015,2.42831415,4118.1,4117.4,4.1521]
[1760113304216,2.42823021,4118.3,4117.5,0.4391]
[1760113304441,2.42836962,4118.0,4117.4,3.713]
[1760113304755,2.42841387,4118.0,4117.4,3.713]
[1760113305046,2.42843635,4117.9,4117.1,2.42884155]
[1760113305208,0.6336,4118.5,4117.3,0.4391]
[1760113305412,0.6336,4118.5,4115.6,13.06453642]
[1760113305413,2.5536,4118.6,4116.5,2.4641]
[1760113305624,2.42872858,4117.4,4116.6,1.88]
[1760113305851,1.92,4117.2,4116.6,1.88]
[1760113306096,0.001,4117.7,4116.6,1.88]
[1760113306389,0.001,4116.8,4116.6,3.713]
[1760113306726,0.001,4116.8,4116.1,2.86853839]
[1760113307082,0.001,4116.8,4116.5,0.4738]
[1760113307257,0.001,4116.8,4116.5,2.90304302]
[1760113307559,0.001,4116.8,4116.7,2.42913012]
[1760113307928,0.001,4116.8,4116.7,2.90293012]
[1760113308636,0.001,4116.8,4116.7,4.84722142]
[1760113308826,0.001,4116.8,4116.7,4.82293012]
[1760113309032,0.001,4116.8,4116.7,5.45653012]
[1760113309261,0.001,4116.8,4116.7,6.24510646]
[1760113311462,0.001,4117.3,4117.2,2.42883513]
[1760113311665,0.001,4117.3,4117.2,20.14321589]
[1760113311965,0.001,4117.3,4117.2,20.60511589]
[1760113312176,0.001,4117.3,4117.2,21.35951589]
[1760113312465,0.001,4117.3,4117.2,7.93544932]
[1760113313430,0.001,4117.7,4117.6,3.06219918]
[1760113313645,0.001,4117.7,4117.6,18.85657994]
[1760113313975,0.1208,4119.9,4119.4,2.42750799]
[1760113314146,0.1208,4120.2,4119.5,0.1208]
[1760113314341,0.25478173,4120.1,4119.5,0.1208]
[1760113314541,0.1208,4120.2,4119.5,0.1208]
[1760113314748,0.1208,4120.2,4119.8,2.4272996]
[1760113314965,0.1208,4120.3,4119.9,2.45149407]
[1760113315165,0.1208,4120.5,4119.8,0.5827]
[1760113315474,0.89568254,4120.9,4120.1,0.1208]
[1760113315475,0.1208,4120.8,4120.1,0.1208]
[1760113315675,0.1208,4120.8,4120.2,0.4619]
[1760113316078,0.1208,4120.8,4120.1,2.54792463]
[1760113316379,0.25474564,4120.7,4120.1,2.54792463]
[1760113316581,0.25474564,4120.7,4120.1,0.1208]
[1760113316875,0.25474564,4120.7,4119.9,0.1208]
[1760113316876,2.42699868,4120.4,4119.9,0.1208]
[1760113317171,3.06344593,4120.6,4119.9,0.1208]
[1760113317172,2.42704894,4120.3,4119.9,0.1208]
[1760113317573,0.51581489,4120.4,4119.9,0.1208]
[1760113317780,0.1208,4120.2,4119.5,0.1208]
[1760113317946,0.64958254,4119.8,4119.2,0.1208]
[1760113318142,4.86318457,4119.7,4119.2,0.1208]
[1760113318443,2.42747906,4119.5,4118.7,0.4619]
[1760113318660,0.51581489,4119.4,4118.7,2.88984924]
[1760113318860,0.51581489,4119.3,4118.7,2.88984924]
[1760113319062,0.51581489,4119.3,4118.4,0.2262]
[1760113319063,2.42769806,4119.2,4118.4,2.65428135]
[1760113319282,0.51581489,4119.1,4117.4,0.4619]
[1760113319466,0.51581489,4119.0,4117.5,0.4619]
[1760113319667,0.51581489,4119.0,4118.2,2.42818999]
[1760113319668,0.51581489,4118.9,4118.2,2.42818999]
[1760113319864,0.51581489,4118.9,4118.1,2.42825957]
[1760113319865,0.51581489,4118.8,4118.1,2.42825957]
[1760113320147,0.51581489,4118.7,4117.9,0.4619]
[1760113320351,0.51581489,4118.7,4118.3,2.42817855]
[1760113320657,0.51581489,4118.9,4118.3,2.89008232]
[1760113320861,1.30312007,4119.6,4118.7,2.42795056]
[1760113320862,0.51581489,4118.8,4118.7,2.42795056]
[1760113321057,0.51581489,4119.3,4118.9,2.42783267]
[1760113321260,2.42741693,4119.7,4118.9,2.42783267]
[1760113321261,0.51581489,4119.5,4119.0,0.4619]
[1760113321488,0.51581489,4119.9,4119.1,2.88961479]
[1760113321786,0.51581489,4119.9,4119.1,0.4619]
[1760113321787,2.9431205,4119.8,4119.1,0.4619]
[1760113321974,0.51581489,4119.7,4118.6,0.4619]
[1760113322173,1.00883584,4119.9,4118.6,0.4619]
[1760113322174,1.16539743,4119.6,4118.7,2.42795056]
[1760113322360,1.16539743,4119.5,4119.1,2.4276965]
[1760113322682,0.86874671,4119.8,4119.1,2.4276965]
[1760113322683,0.51581489,4119.4,4119.3,2.42759692]
[1760113322900,0.51581489,4119.7,4119.4,2.42753799]
[1760113323198,0.51581489,4119.7,4118.5,1.92]
[1760113323199,0.51581489,4120.0,4118.0,1.92]
[1760113323353,0.64958254,4120.2,4117.9,15.79438076]
[1760113323354,0.51581489,4119.9,4119.0,0.4619]
[1760113323554,0.51581489,4120.1,4119.0,0.4619]
[1760113323855,0.64958254,4119.5,4118.2,0.4619]
[1760113324180,0.86874671,4119.8,4116.8,15.79438076]
[1760113324181,3.07741846,4118.9,4117.6,0.4619]
[1760113324361,1.16539743,4118.8,4117.6,0.4619]
[1760113324560,0.51581489,4118.7,4117.6,0.4619]
[1760113324886,0.51581489,4118.6,4117.7,2.4285402]
[1760113325089,3.5934744,4118.5,4117.1,0.4619]
[1760113325294,1.16539743,4118.4,4117.5,0.4619]
[1760113325464,0.51581489,4118.6,4118.4,2.42811426]
[1760113325867,0.51581489,4118.9,4118.3,2.67861095]
[1760113326192,0.51581489,4118.8,4118.7,2.42795056]
[1760113326403,0.51581489,4118.9,4118.7,2.88985056]
[1760113326554,0.51581489,4118.8,4118.7,2.42795056]
[1760113326892,0.51581489,4118.8,4118.4,2.42812742]
[1760113327057,0.64958254,4119.2,4116.6,0.002]
[1760113327058,0.51581489,4118.7,4116.6,0.002]
[1760113327258,0.64958254,4118.4,4117.8,2.42846706]
[1760113327473,0.86874671,4118.7,4116.6,0.002]
[1760113327474,0.51581489,4118.3,4117.9,0.4619]
[1760113327765,0.51581489,4118.3,4116.8,1.92]
[1760113327766,0.51581489,4118.2,4118.1,2.42830431]
[1760113327966,0.51581489,4118.2,4118.1,3.11640431]
[1760113328180,0.51581489,4118.2,4118.1,0.6881]
[1760113328380,0.51581489,4118.2,4118.0,0.1208]
[1760113328578,2.42847968,4117.9,4117.6,0.1208]
[1760113328892,2.42863957,4117.6,4116.6,2.43117361]
[1760113329187,0.51581489,4117.5,4116.9,2.42900989]
[1760113329392,0.51581489,4117.4,4117.0,0.02428953]
[1760113329690,3.2007134,4117.6,4117.0,0.02428953]
[1760113329691,0.51581489,4117.3,4117.0,0.02428953]
[1760113329899,0.51581489,4117.2,4116.8,0.1208]
[1760113330060,0.77207375,4117.6,4117.1,0.4619]
[1760113330262,1.17263332,4117.5,4117.2,0.4619]
[1760113330492,0.52135957,4117.4,4117.0,0.1208]
[1760113330706,0.52135957,4117.3,4117.1,0.4619]
[1760113330915,0.52135957,4117.2,4117.0,0.1208]
[1760113331064,0.1208,4117.0,4116.6,0.002]
[1760113331263,0.52135957,4116.9,4116.6,0.4639]
[1760113331558,0.52135957,4116.8,4116.7,2.89103012]
[1760113331999,0.52154093,4117.1,4117.0,2.42895312]
[1760113332160,2.42802316,4118.6,4117.9,2.42842225]
[1760113332161,0.65204217,4118.1,4117.9,2.42842225]
[1760113332360,0.65204217,4118.4,4118.1,2.42830343]
[1760113332662,0.65204217,4118.7,4118.3,2.65438638]
[1760113332890,0.5214295,4118.6,4118.4,0.4619]
[1760113333192,0.65204217,4118.8,4116.7,2.42908827]
[1760113333193,2.94949956,4118.5,4117.5,0.4619]
[1760113333363,0.65190407,4118.3,4117.5,2.89054995]
[1760113333565,0.5214295,4118.2,4117.5,0.4619]